fUSD/lending_fUSD_20240412
["ID","MTS","AMOUNT","RATE_DAILY","PERIOD"]
[322250918,1712913078767,-500.0,0.00031506,2]
[322250919,1712913078776,-495.57600603,0.00031506,2]
[322250920,1712913078786,-1027.51,0.00031506,2]
[322250921,1712913078796,-500.0,0.00031506,2]
[322250922,1712913078807,-2080.21,0.00031506,2]
[322250923,1712913078816,-1105.7,0.00031506,2]
[322250924,1712913078826,-1530.77,0.00031506,2]
[322250925,1712913078837,-1722.55,0.00031506,2]
[322250926,1712913078847,-583.55,0.00031506,2]
[322250927,1712913078857,-500.0,0.00031506,2]
[322250928,1712913078866,-500.0,0.00031506,2]
[322250929,1712913078875,-1217.73,0.00031506,2]
[322250930,1712913078885,-11130.2,0.00031506,2]
[322250931,1712913078895,-821.08,0.00031506,2]
[322250932,1712913078904,-500.0,0.00031506,2]
[322250933,1712913078914,-270.6589865,0.00031506,2]
[322250934,1712913078923,-1938.7,0.00031506,2]
[322250935,1712913078933,-500.0,0.00031506,2]
[322250936,1712913078943,-500.0,0.00031506,2]
[322250937,1712913078955,-930.87,0.00031506,2]
[322250938,1712913078967,-2176.5,0.00031506,2]
[322250939,1712913078979,-500.0,0.00031506,2]
[322250940,1712913078990,-500.0,0.00031506,2]
[322250941,1712913079002,-551.46,0.00031506,2]
[322250942,1712913079012,-2252.47,0.00031506,2]
[322250943,1712913079023,-500.0,0.00031506,2]
[322250944,1712913079033,-500.0,0.00031506,2]
[322250945,1712913079045,-500.0,0.00031506,2]
[322250946,1712913079055,-1111.76,0.00031506,2]
[322250947,1712913079065,-621.09,0.00031506,2]
[322250948,1712913079075,-779.64,0.00031506,2]
[322250949,1712913079086,-1124.57,0.00031506,2]
[322250950,1712913079096,-914.69,0.00031506,2]
[322250951,1712913079105,-925.11,0.00031506,2]
[322250952,1712913079115,-1311.53,0.00031506,2]
[322250953,1712913079124,-888.39,0.00031506,2]
[322250954,1712913079134,-742.51,0.00031506,2]
[322250955,1712913079143,-1305.4,0.00031506,2]
[322250956,1712913079153,-1858.46,0.00031506,2]
[322250957,1712913079162,-500.0,0.00031506,2]
[322250958,1712913079172,-844.56,0.00031506,2]
[322250959,1712913079181,-510.32,0.00031506,2]
[322250960,1712913079191,-920.2,0.00031506,2]
[322250961,1712913079200,-1490.11,0.00031506,2]
[322250962,1712913079210,-662.41,0.00031506,2]
[322250963,1712913079220,-500.0,0.00031506,2]
[322250964,1712913079229,-663.55,0.00031506,2]
[322250965,1712913079239,-500.0,0.00031506,2]
[322250966,1712913079248,-4281.14,0.00031506,2]
[322250967,1712913079257,-535.0,0.00031507,2]
[322250968,1712913079266,-742.0,0.00031507,2]
[322250969,1712913079275,-5000.0,0.00031518,2]
[322250970,1712913079284,-3285.59603356,0.00031521,2]
[322250971,1712913079293,-153.32512065,0.00031543,7]
[322250972,1712913079303,-10000.0,0.00031555,2]
[322250973,1712913079312,-25000.0,0.00031568,2]
[322250974,1712913079321,-157.57019945,0.00031571,7]
[322250975,1712913079330,-1000.0,0.00031572,2]
[322250976,1712913079340,-1316.52,0.00031577,2]
[322250977,1712913079349,-5000.0,0.00031591,2]
[322250978,1712913079358,-5000.0,0.00031592,2]
[322250979,1712913079367,-5000.0,0.00031596,2]
[322250980,1712913079376,-156.64160943,0.00031603,7]
[322250981,1712913079385,-157.57019945,0.00031608,7]
[322250982,1712913079394,-5000.0,0.00031615,2]
[322250983,1712913079403,-5000.0,0.00031632,2]
[322250984,1712913079412,-2522.99,0.00031653,2]
[322250985,1712913079421,-251.08783605,0.00031656,4]
[322250986,1712913079430,-157.57019945,0.00031657,7]
[322250987,1712913079439,-1286.04656595,0.0003166,2]
[322250988,1712913079448,-25000.0,0.00031686,2]
[322250989,1712913079458,-10000.0,0.000317,2]
[322250990,1712913079467,-2501.62,0.00031707,2]
[322250991,1712913079479,-5000.0,0.00031708,2]
[322250992,1712913079488,-5000.0,0.00031724,2]
[322250993,1712913079497,-5000.0,0.00031731,2]
[322250994,1712913079506,-2501.11,0.00031733,2]
[322250995,1712913079515,-500.0,0.0003178,2]
[322250996,1712913079525,-500.0,0.0003178,2]
[322250997,1712913079534,-500.0,0.0003178,2]
[322250998,1712913079543,-514.93,0.0003178,2]
[322250999,1712913079552,-533.32,0.0003178,2]
[322251000,1712913079561,-199.84,0.0003178,2]
[322251001,1712913079571,-500.0,0.0003178,2]
[322251002,1712913079580,-522.3,0.0003178,2]
[322251003,1712913079591,-500.0,0.0003178,2]
[322251004,1712913079606,-226.14,0.0003178,2]
[322251005,1712913079615,-595.67,0.0003178,2]
[322251006,1712913079624,-554.42,0.0003178,2]
[322251007,1712913079633,-311.68,0.0003178,2]
[322251008,1712913079643,-1693.89,0.0003178,2]
[322251009,1712913079652,-1344.19,0.0003178,2]
[322251010,1712913079661,-500.0,0.0003178,2]
[322251011,1712913079670,-557.5,0.0003178,2]
[322251012,1712913079680,-1426.98,0.0003178,2]
[322251013,1712913079689,-492.37417559,0.0003178,2]
[322251014,1712913079698,-613.24,0.0003178,2]
[322251015,1712913079707,-4902.69,0.0003178,2]
[322251016,1712913079716,-589.66,0.0003178,2]
[322251017,1712913079725,-500.0,0.0003178,2]
[322251018,1712913079734,-783.37,0.0003178,2]
[322251019,1712913079745,-224.69066821,0.0003178,2]
[322251020,1712913079754,-181.16951572,0.0003178,2]
[322251021,1712913079763,-500.0,0.0003178,2]
[322251022,1712913079772,-500.0,0.0003178,2]
[322251023,1712913079781,-1116.46,0.0003178,2]
[322251024,1712913079790,-500.0,0.0003178,2]
[322251025,1712913079799,-500.0,0.0003178,2]
[322251026,1712913079808,-942.27,0.0003178,2]
[322251027,1712913079817,-500.0,0.0003178,2]
[322251028,1712913079826,-1102.09,0.0003178,2]
[322251029,1712913079835,-724.59,0.0003178,2]
[322251030,1712913079844,-710.01,0.0003178,2]
[322251031,1712913079854,-6220.28,0.0003178,2]
[322251032,1712913079863,-152.08282409,0.0003178,2]
[322251033,1712913079872,-500.0,0.0003178,2]
[322251034,1712913079881,-500.0,0.0003178,2]
[322251035,1712913079891,-652.05,0.0003178,2]
[322251036,1712913079900,-500.0,0.0003178,2]
[322251037,1712913079910,-2583.5,0.0003178,2]
[322251038,1712913079919,-1053.91,0.0003178,2]
[322251039,1712913079928,-2164.81,0.0003178,2]
[322251040,1712913079938,-216.65099749,0.0003178,2]
[322251041,1712913079947,-151.0,0.0003178,7]
[322251042,1712913079957,-500.0,0.0003178,2]
[322251043,1712913079966,-1027.51,0.0003178,2]
[322251044,1712913079976,-247.97190459,0.0003178,2]
[322251045,1712913079985,-2080.21,0.0003178,2]
[322251046,1712913079994,-1105.7,0.0003178,2]
[322251047,1712913080003,-1530.77,0.0003178,2]
[322251048,1712913080013,-1722.55,0.0003178,2]
[322251049,1712913080023,-583.55,0.0003178,2]
[322251050,1712913080032,-500.0,0.0003178,2]
[322251051,1712913080041,-500.0,0.0003178,2]
[322251052,1712913080051,-1217.73,0.0003178,2]
[322251053,1712913080060,-11130.2,0.0003178,2]
[322251054,1712913080069,-821.08,0.0003178,2]
[322251055,1712913080079,-500.0,0.0003178,2]
[322251056,1712913080089,-1938.7,0.0003178,2]
[322251057,1712913080098,-500.0,0.0003178,2]
[322251058,1712913080108,-500.0,0.0003178,2]
[322251059,1712913080118,-930.87,0.0003178,2]
[322251060,1712913080128,-2176.5,0.0003178,2]
[322251061,1712913080138,-500.0,0.0003178,2]
[322251062,1712913080147,-500.0,0.0003178,2]
[322251063,1712913080157,-551.46,0.0003178,2]
[322251064,1712913080167,-2252.47,0.0003178,2]
[322251065,1712913080176,-531.47110643,0.0003178,2]
[322251066,1712913080185,-500.0,0.0003178,2]
[322251067,1712913080196,-500.0,0.0003178,2]
[322251068,1712913080206,-1111.76,0.0003178,2]
[322251069,1712913080216,-621.09,0.0003178,2]
[322251070,1712913080225,-779.64,0.0003178,2]
[322251071,1712913080234,-1124.57,0.0003178,2]
[322251072,1712913080244,-914.69,0.0003178,2]
[322251073,1712913080253,-925.11,0.0003178,2]
[322251074,1712913080264,-1311.53,0.0003178,2]
[322251075,1712913080273,-888.39,0.0003178,2]
[322251076,1712913080283,-742.51,0.0003178,2]
[322251077,1712913080292,-1305.4,0.0003178,2]
[322251078,1712913080301,-1858.46,0.0003178,2]
[322251079,1712913080311,-500.0,0.0003178,2]
[322251080,1712913080321,-844.56,0.0003178,2]
[322251081,1712913080330,-510.32,0.0003178,2]
[322251082,1712913080342,-920.2,0.0003178,2]
[322251083,1712913080352,-1490.11,0.0003178,2]
[322251084,1712913080364,-662.41,0.0003178,2]
[322251085,1712913080373,-500.0,0.0003178,2]
[322251086,1712913080383,-663.55,0.0003178,2]
[322251087,1712913080393,-500.0,0.0003178,2]
[322251088,1712913080402,-4281.14,0.0003178,2]
[322251089,1712913080412,-4625.69,0.00031785,2]
[322251090,1712913080421,-5000.0,0.00031798,2]
[322251091,1712913080431,-154.67867002,0.000318,7]
[322251092,1712913080440,-5000.0,0.00031801,2]
[322251093,1712913080450,-2501.62,0.0003183,2]
[322251094,1712913080460,-156.33363119,0.00031856,7]
[322251095,1712913080470,-351.82655751,0.0003186,2]
[322251096,1712913080481,-2625.74496816,0.0003186,2]
[322251097,1712913080491,-874.35861166,0.0003186,2]
[322251098,1712913080663,-155.80223276,0.0003186,2]
[322251099,1712913080673,-519.49,0.000319,2]
[322251100,1712913080683,-1541.25837116,0.000319,2]
[322251101,1712913080693,-394.0,0.000319,4]
[322251102,1712913080703,-416.0,0.000319,4]
[322251103,1712913080712,-21186.43478612,0.000319,2]
[322251104,1712913080721,-150.0,0.000319,3]
[322251105,1712913080731,-150.0,0.000319,4]
[322251106,1712913080740,-1987.67716642,0.000319,2]
[322251107,1712913080749,-155.04246572,0.000319,2]
[322251108,1712913080759,-310.30526955,0.000319,2]
[322251109,1712913080769,-673.80216358,0.000319,2]
[322251110,1712913080779,-927.9420493,0.000319,2]
[322251111,1712913080788,-175.29854916,0.000319,2]
[322251112,1712913080797,-556.5920254,0.000319,2]
[322251113,1712913080806,-2501.11,0.00031906,2]
[322251114,1712913080815,-10000.0,0.00031909,2]
[322251115,1712913080825,-251.5891478,0.0003197,2]
[322251116,1712913080834,-1316.8700092,0.0003197,2]
[322251117,1712913080844,-1048.9576005,0.0003197,2]
[322251118,1712913080854,-495.7393971,0.0003197,2]
[322251119,1712913080863,-251.5891478,0.0003197,2]
[322251120,1712913080873,-1584.7824181,0.0003197,2]
[322251121,1712913080882,-251.58914827,0.0003197,2]
[322251122,1712913080892,-165.2464657,0.0003197,2]
[322251123,1712913080901,-1058.17735735,0.00031976,4]
[322251124,1712913080911,-155.35145288,0.00031977,4]
[322251125,1712913080920,-155.0,0.00031978,4]
[322251126,1712913080929,-205.85955918,0.00031978,4]
[322251127,1712913080939,-199.82821578,0.00031978,4]
[322251128,1712913080948,-155.0,0.00031978,4]
[322251129,1712913080958,-155.0,0.00031978,4]
[322251130,1712913080967,-1316.8700092,0.00031978,2]
[322251131,1712913080976,-1316.8700092,0.00031978,2]
[322251132,1712913080985,-1316.8700092,0.00031978,2]
[322251133,1712913080995,-1316.8700092,0.00031978,2]
[322251134,1712913081004,-1316.8700092,0.00031978,2]
[322251135,1712913081014,-1048.9576005,0.00031978,2]
[322251136,1712913081023,-1048.9576005,0.00031978,2]
[322251137,1712913081032,-1048.9576005,0.00031978,2]
[322251138,1712913081041,-1048.9576005,0.00031978,2]
[322251139,1712913081051,-1048.9576005,0.00031978,2]
[322251140,1712913081061,-1584.7824181,0.00031978,2]
[322251141,1712913081070,-1584.7824181,0.00031978,2]
[322251142,1712913081080,-1584.7824181,0.00031978,2]
[322251143,1712913081090,-1584.7824181,0.00031978,2]
[322251144,1712913081099,-1584.7824181,0.00031978,2]
[322251145,1712913081109,-165.2464657,0.00031978,2]
[322251146,1712913081118,-165.2464657,0.00031978,2]
[322251147,1712913081128,-165.2464657,0.00031978,2]
[322251148,1712913081137,-165.2464657,0.00031978,2]
[322251149,1712913081147,-165.2464657,0.00031978,2]
[322251150,1712913081157,-4572.46475471,0.00031979,4]
[322251151,1712913081166,-5677.46353067,0.00031979,2]
[322251152,1712913081176,-2354.31954713,0.00031979,4]
[322251153,1712913081185,-166.9536833,0.00031979,4]
[322251154,1712913081195,-304.59353416,0.00031979,4]
[322251155,1712913081204,-266.79799477,0.00031979,4]
[322251156,1712913081213,-155.0,0.00031979,4]
[322251157,1712913081223,-3090.44014814,0.00031979,4]
[322251158,1712913081233,-404.73102028,0.00031979,4]
[322251159,1712913081242,-5058.30625529,0.00031979,2]
[322251160,1712913081252,-151.0,0.00031979,7]
[322251161,1712913081262,-151.0,0.00031979,7]
[322251162,1712913081272,-101341.98325258,0.0003198,2]
[322251163,1712913081281,-319.57100152,0.0003198,2]
[322251164,1712913081290,-1313.63491,0.0003198,2]
[322251165,1712913081300,-1040.28875361,0.0003198,2]
[322251166,1712913081310,-410.25784976,0.00031981,2]
[322251167,1712913081320,-520.61738151,0.00031982,2]
[322251168,1712913081329,-226.58823471,0.00031985,2]
[322251169,1712913081339,-251.03652431,0.00031985,2]
[322251170,1712913081348,-881.20815901,0.00031986,2]
[322251171,1712913081358,-822.089144,0.00031986,2]
[322251172,1712913081367,-410.25784976,0.00031987,2]
[322251173,1712913081376,-1040.28875361,0.00031987,2]
[322251174,1712913081386,-410.25784976,0.00031987,2]
[322251175,1712913081395,-881.20815901,0.00031988,2]
[322251176,1712913081404,-226.58823471,0.0003199,2]
[322251177,1712913081414,-226.58823471,0.0003199,2]
[322251178,1712913081423,-251.45764232,0.00031992,2]
[322251179,1712913081432,-822.089144,0.00031995,2]
[322251180,1712913081441,-226.58823471,0.00031997,2]
[322251181,1712913081451,-226.58823471,0.00031997,2]
[322251182,1712913081461,-151.0,0.00031997,7]
[322251183,1712913081470,-156.415468,0.00031997,7]
[322251184,1712913081479,-156.415468,0.00031997,7]
[322251185,1712913081489,-186631.99262587,0.00031997,2]
[322251186,1712913081499,-2317.52686174,0.00031997,2]
[322251187,1712913081509,-822.089144,0.00031999,2]
[322251188,1712913081518,-100000.0,0.00032,22]
[322251189,1712913081528,-189.98655532,0.00032,4]
[322251190,1712913081537,-10999.999996,0.00032,2]
[322251191,1712913081547,-1037.38929625,0.00032,14]
[322251192,1712913081556,-114419.44972877,0.00032,2]
[322251193,1712913081791,-1197231.54123561,0.00032,2]
[322251194,1712913081804,-1506915.76892488,0.00032,2]
[322251195,1712913082215,-500.0,0.00027945,2]
[322251196,1712913082225,-500.0,0.00028219,2]
[322251197,1712913082234,-500.0,0.00028493,2]
[322251198,1712913082243,-500.0,0.00028767,2]
[322251199,1712913082253,-500.0,0.00029041,2]
[322251200,1712913082263,-684.9,0.00029589,2]
[322251201,1712913082273,-684.9,0.00029863,2]
[322251202,1712913082284,-684.9,0.00030136,2]
[322251203,1712913082295,-684.9,0.0003041,2]
[322251204,1712913082306,-12553.83869762,0.00032,2]
[322251205,1712913082318,-577.37295882,0.00032,2]
[322251206,1712913082330,-2532.9872,0.00032,2]
[322251207,1712913082348,-500.0,0.00029315,2]
[322251208,1712913082358,-967.58036813,0.00032,2]
[322251209,1712913082375,-684.9,0.00030684,2]
[322251210,1712913082385,-1125.62112171,0.00032,2]
[322251211,1712913082623,-500.0,0.00024658,2]
[322251212,1712913082634,-233.87821684,0.0002583,2]
[322251213,1712913082644,-500.0,0.00029589,2]
[322251214,1712913082653,-500.0,0.00029863,2]
[322251215,1712913082662,-500.0,0.00030136,2]
[322251216,1712913082675,-500.0,0.0003041,2]
[322251217,1712913082685,-500.0,0.00030684,2]
[322251218,1712913082695,-684.9,0.00030958,2]
[322251219,1712913082706,-500.0,0.00030958,2]
[322251220,1712913082716,-299.70465103,0.00031232,2]
[322251221,1712913082729,-385.19534897,0.00031232,2]
[322251222,1712913082738,-500.0,0.00031232,2]
[322251223,1712913082749,-541.38465103,0.00031506,2]
[322251224,1712913082793,-143.51534897,0.00031506,2]
[322251225,1712913082802,-500.0,0.00031506,2]
[322251226,1712913082811,-684.9,0.0003178,2]
[322251227,1712913082820,-500.0,0.0003178,2]
[322251228,1712913082829,-76901.59931284,0.00032,2]
[322251229,1712913082847,-9133.03911666,0.00032,2]
[322251230,1712913082861,-2595.58041615,0.00032,2]
[322251231,1712913082884,-500.0,0.00027397,2]
[322251232,1712913082893,-7431.65331211,0.00032,2]
[322251233,1712913082905,-21929775.8419519,0.00032,2]
[322251234,1712913082926,-910.21492,0.00032,2]
[322251235,1712913082938,-1047.27139685,0.00032,2]
[322251236,1712913082951,-5340.66510317,0.00032,2]
[322251237,1712913082963,-6382.43172048,0.00032,2]
[322251238,1712913082976,-11577.71946317,0.00032,2]
[322251239,1712913082989,-4210.98051611,0.00032,2]
[322251240,1712913083003,-297.03097691,0.00032,2]
[322251241,1712913083014,-7146.2,0.00032,2]
[322251242,1712913083138,-500.0,0.00027671,2]
[322251243,1712913083148,-500.0,0.00027945,2]
[322251244,1712913083159,-486.39,0.00028219,2]
[322251245,1712913083168,-355.0,0.00028493,5]
[322251246,1712913083177,-622.89955006,0.00032,2]
[322251247,1712913083482,-1287.16552626,0.00032,2]
[322251248,1712913083495,-42780.51982175,0.00032,2]
[322251249,1712913083510,-6639.42880597,0.00032,2]
[322251250,1712913083533,-522.75751384,0.00024657,2]
[322251251,1712913083543,-538.58929519,0.00024657,2]
[322251252,1712913083552,-147001.03688656,0.00032,2]
[322251253,1712913083564,-519.8364,0.00032,2]
[322251256,1712914045190,10000.0,0.00029998,60]
[322251257,1712914128925,549.6960411,0.0003,30]
[322251264,1712914181783,251.08783605,0.00020658,2]
[322251284,1712914232381,-155.0,0.00020861,2]
[322251285,1712914232391,-607.36870775,0.00020862,2]
[322251286,1712914232400,-783.1252819,0.00020863,2]
[322251287,1712914232412,-1.26687686,0.00020863,2]
[322251288,1712914232422,-902.28407909,0.00020863,2]
[322251289,1712914232434,-156.63933858,0.00020863,2]
[322251290,1712914232443,-199.96787162,0.00020863,2]
[322251291,1712914232453,-2356.04018017,0.00020863,2]
[322251292,1712914232463,-155.0,0.00020863,2]
[322251293,1712914232472,-1463.37333509,0.00020869,2]
[322251294,1712914232488,-546.60437452,0.00020869,2]
[322251295,1712914232500,-1733.56127489,0.00020869,2]
[322251296,1712914232556,-5150.5710155,0.00020869,2]
[322251297,1712914232565,-536.60711953,0.00020883,2]
[322251298,1712914232574,-5977.27826535,0.000209,2]
[322251299,1712914232584,-7137.15,0.000209,2]
[322251300,1712914232594,-350.0,0.00021,3]
[322251301,1712914232603,-150.99,0.00021,2]
[322251302,1712914232612,-9999.99,0.00021,2]
[322251303,1712914232621,-329.29,0.000219,2]
[322251304,1712914232630,-229.86,0.00021918,2]
[322251305,1712914232640,-400.0,0.00023,3]
[322251306,1712914232650,-150.99,0.00023,2]
[322251307,1712914232661,-692.6,0.00023492,2]
[322251308,1712914232672,-224.58872266,0.00024,2]
[322251309,1712914232683,-682.7623192,0.00024655,2]
[322251310,1712914232694,-302.63266128,0.00024656,2]
[322251311,1712914232704,-363.46482361,0.00024657,2]
[322251312,1712914232713,-1290.91415367,0.00024657,2]
[322251313,1712914232722,-10809.33,0.00024657,2]
[322251314,1712914232732,-450.0,0.00025,3]
[322251315,1712914232743,-1317.44,0.00025352,2]
[322251316,1712914232753,-500.0,0.00025528,2]
[322251317,1712914232763,-152.27,0.00025542,2]
[322251318,1712914232773,-250.0,0.00025558,2]
[322251319,1712914232783,-250.0,0.00025602,2]
[322251320,1712914232794,-152.27,0.00025631,2]
[322251321,1712914232803,-200.0,0.0002564,2]
[322251322,1712914232812,-8017.33,0.00025654,2]
[322251323,1712914232822,-152.27,0.0002572,2]
[322251324,1712914232833,-692.6,0.00025756,2]
[322251325,1712914232844,-152.27,0.00025808,2]
[322251326,1712914232853,-152.27,0.00025897,2]
[322251327,1712914232862,-152.27,0.00025986,2]
[322251328,1712914232872,-1000.0,0.00026058,2]
[322251329,1712914232883,-152.27,0.00026075,2]
[322251330,1712914232893,-499.99,0.0002614,2]
[322251331,1712914232904,-3983.61,0.00026147,2]
[322251332,1712914232914,-152.27,0.00026163,2]
[322251333,1712914232923,-152.27,0.00026252,2]
[322251334,1712914232935,-2223.44496865,0.00026286,2]
[322251335,1712914232949,-152.27,0.00026341,2]
[322251336,1712914232959,-152.27,0.0002643,2]
[322251337,1712914232969,-152.27,0.00026518,2]
[322251338,1712914232978,-383.21,0.00026602,2]
[322251339,1712914232990,-152.27,0.00026607,2]
[322251340,1712914233000,-383.21,0.00026609,2]
[322251341,1712914233011,-383.21,0.00026616,2]
[322251342,1712914233022,-383.21,0.00026623,2]
[322251343,1712914233033,-383.21,0.0002663,2]
[322251344,1712914233230,-383.21,0.00026637,2]
[322251345,1712914233241,-383.21,0.00026644,2]
[322251346,1712914233251,-383.21,0.00026651,2]
[322251347,1712914233261,-383.21,0.00026658,2]
[322251348,1712914233271,-383.21,0.00026665,2]
[322251349,1712914233280,-383.21,0.00026672,2]
[322251350,1712914233290,-383.21,0.00026679,2]
[322251351,1712914233299,-383.21,0.00026686,2]
[322251352,1712914233308,-383.21,0.00026693,2]
[322251353,1712914233317,-152.27,0.00026696,2]
[322251354,1712914233326,-383.21,0.000267,2]
[322251355,1712914233338,-383.21,0.00026707,2]
[322251356,1712914233349,-383.21,0.00026714,2]
[322251357,1712914233360,-383.21,0.00026721,2]
[322251358,1712914233369,-383.21,0.00026728,2]
[322251359,1712914233379,-383.21,0.00026735,2]
[322251360,1712914233389,-152.27,0.00026784,2]
[322251361,1712914233398,-152.27,0.00026873,2]
[322251362,1712914233407,-168.61,0.00026899,2]
[322251363,1712914233416,-500.0,0.00027,3]
[322251364,1712914233425,-1361.64470333,0.00027116,2]
[322251365,1712914233434,-562.74532621,0.00027116,2]
[322251366,1712914233443,-4572.46475471,0.0002737,2]
[322251367,1712914233452,-266.79799477,0.00027395,2]
[322251368,1712914233462,-304.59353416,0.00027395,2]
[322251369,1712914233471,-155.0,0.00027395,2]
[322251370,1712914233480,-155.0,0.00027395,2]
[322251371,1712914233489,-205.85955918,0.00027395,2]
[322251372,1712914233498,-155.35145288,0.00027395,2]
[322251373,1712914233508,-166.9536833,0.00027396,2]
[322251374,1712914233519,-501.77354759,0.00027397,2]
[322251375,1712914233529,-500.0,0.00027397,2]
[322251376,1712914233540,-439.16995933,0.00027397,2]
[322251377,1712914233549,-500.0,0.00027397,2]
[322251378,1712914233560,-500.0,0.00027397,2]
[322251379,1712914233569,-500.0,0.00027397,2]
[322251380,1712914233578,-500.0,0.00027397,2]
[322251381,1712914233588,-500.0,0.00027397,2]
[322251382,1712914233600,-500.0,0.00027397,2]
[322251383,1712914233609,-500.0,0.00027397,2]
[322251384,1712914233618,-500.0,0.00027397,2]
[322251385,1712914233627,-500.0,0.00027397,2]
[322251386,1712914233636,-500.0,0.00027397,2]
[322251387,1712914233645,-500.0,0.00027397,2]
[322251388,1712914233656,-166.12922935,0.00027397,2]
[322251389,1712914233666,-500.0,0.00027397,2]
[322251390,1712914233676,-538.81417728,0.00027397,2]
[322251391,1712914233685,-500.0,0.00027397,2]
[322251392,1712914233695,-500.0,0.00027397,2]
[322251393,1712914233704,-500.0,0.00027397,2]
[322251394,1712914233713,-500.0,0.00027397,2]
[322251395,1712914233722,-500.0,0.00027397,2]
[322251396,1712914233731,-500.0,0.00027397,2]
[322251397,1712914233740,-500.0,0.00027397,2]
[322251398,1712914233749,-500.0,0.00027397,2]
[322251399,1712914233759,-500.0,0.00027397,2]
[322251400,1712914233768,-500.0,0.00027397,2]
[322251401,1712914233778,-500.0,0.00027397,2]
[322251402,1712914233787,-500.0,0.00027397,2]
[322251403,1712914233796,-500.0,0.00027397,2]
[322251404,1712914233806,-154.20406455,0.00027561,2]
[322251405,1712914233815,-4407.6964,0.00027645,2]
[322251406,1712914233825,-1545.49398965,0.00027669,2]
[322251407,1712914233834,-333.50558666,0.00027669,2]
[322251408,1712914233844,-156.92614879,0.00027669,2]
[322251409,1712914233853,-207.35689785,0.0002767,2]
[322251410,1712914233861,-155.72690092,0.0002767,2]
[322251411,1712914233871,-500.0,0.00027671,2]
[322251412,1712914233880,-500.0,0.00027671,2]
[322251413,1712914233890,-500.0,0.00027671,2]
[322251414,1712914233899,-500.0,0.00027671,2]
[322251415,1712914233909,-500.0,0.00027671,2]
[322251416,1712914233918,-500.0,0.00027671,2]
[322251417,1712914233928,-500.0,0.00027671,2]
[322251418,1712914233937,-500.0,0.00027671,2]
[322251419,1712914233950,-500.0,0.00027671,2]
[322251420,1712914233960,-500.0,0.00027671,2]
[322251421,1712914233969,-500.0,0.00027671,2]
[322251422,1712914233979,-500.0,0.00027671,2]
[322251423,1712914233989,-500.0,0.00027671,2]
[322251424,1712914233998,-500.0,0.00027671,2]
[322251425,1712914234008,-500.0,0.00027671,2]
[322251426,1712914234018,-500.0,0.00027671,2]
[322251427,1712914234029,-500.0,0.00027671,2]
[322251428,1712914234038,-500.0,0.00027671,2]
[322251429,1712914234047,-500.0,0.00027671,2]
[322251430,1712914234057,-500.0,0.00027671,2]
[322251431,1712914234068,-500.0,0.00027671,2]
[322251432,1712914234077,-500.0,0.00027671,2]
[322251433,1712914234086,-500.0,0.00027671,2]
[322251434,1712914234096,-500.0,0.00027671,2]
[322251435,1712914234105,-500.0,0.00027671,2]
[322251436,1712914234114,-154.20406455,0.0002772,2]
[322251437,1712914234124,-1158.2193,0.00027745,2]
[322251438,1712914234133,-2995.5386,0.00027745,2]
[322251439,1712914234142,-4179.8003,0.00027745,2]
[322251440,1712914234151,-151.60914001,0.00027766,2]
[322251441,1712914234161,-593.08396044,0.000278,2]
[322251442,1712914234170,-2120.75361991,0.00027835,2]
[322251443,1712914234179,-34011.7713,0.00027845,2]
[322251444,1712914234188,-260.71269075,0.000279,2]